bitfinex-derivatives/quotes_BTCF0:USTF0_20251228
["timestamp","ask_amount","ask_price","bid_price","bid_amount"]
[1766894382375,0.02464344,87800.0,87789.0,0.0683988]
[1766894382575,0.02464344,87799.0,87789.0,0.0683988]
[1766894382770,0.0113971,87803.0,87789.0,0.0683988]
[1766894382975,0.02464346,87802.0,87789.0,0.0683988]
[1766894383281,0.02464346,87801.0,87789.0,0.0683988]
[1766894383483,0.02464346,87800.0,87789.0,0.0683988]
[1766894383784,0.02464346,87799.0,87789.0,0.0683988]
[1766894384083,0.0113971,87803.0,87789.0,0.0683988]
[1766894384284,0.02464352,87802.0,87789.0,0.0683988]
[1766894384584,0.02464352,87801.0,87789.0,0.0683988]
[1766894384772,0.02464352,87800.0,87789.0,0.0683988]
[1766894384969,0.02464352,87799.0,87789.0,0.0683988]
[1766894385174,0.0113971,87803.0,87789.0,0.0683988]
[1766894385369,0.02464325,87802.0,87789.0,0.0683988]
[1766894385574,0.02464325,87801.0,87789.0,0.0683988]
[1766894385874,0.02464325,87800.0,87789.0,0.0683988]
[1766894386076,0.02464325,87799.0,87789.0,0.0683988]
[1766894386374,0.0113968,87806.0,87789.0,0.0683988]
[1766894386577,0.02464321,87805.0,87789.0,0.0683988]
[1766894386779,0.02464321,87804.0,87789.0,0.0683988]
[1766894386978,0.02464321,87803.0,87789.0,0.0683988]
[1766894387179,0.02464321,87802.0,87789.0,0.0683988]
[1766894387477,0.02464321,87801.0,87789.0,0.0683988]
[1766894387786,0.02464321,87800.0,87789.0,0.0683988]
[1766894387988,0.02464321,87799.0,87789.0,0.0683988]
[1766894390489,0.02464321,87799.0,87794.0,0.00107967]
[1766894391597,0.02464321,87798.0,87796.0,0.00107967]
[1766894391799,0.02464321,87797.0,87796.0,0.00107967]
[1766894396400,0.02464321,87797.0,87789.0,0.0683988]
[1766894396600,0.011397,87804.0,87789.0,0.0683988]
[1766894396902,0.02464269,87803.0,87789.0,0.0683988]
[1766894397092,0.02464269,87802.0,87789.0,0.0683988]
[1766894397391,0.11434106,87800.0,87789.0,0.0683988]
[1766894397592,0.02464269,87799.0,87789.0,0.0683988]
[1766894397798,0.02464269,87798.0,87789.0,0.0683988]
[1766894397995,0.02464269,87797.0,87789.0,0.0683988]
[1766894398192,0.08164099,87796.0,87773.0,0.05927862]
[1766894398393,0.11434106,87783.0,87773.0,0.05927862]
[1766894403200,0.11434106,87783.0,87773.0,0.00227862]
[1766894403498,0.11434106,87783.0,87773.0,0.05927862]
[1766894404703,0.22868212,87783.0,87773.0,0.00227862]
[1766894404901,0.22868212,87783.0,87773.0,0.057]
[1766894405502,0.22868212,87783.0,87769.0,0.00017083]
[1766894405804,0.11434106,87779.0,87770.0,0.057]
[1766894406207,0.0114015,87769.0,87719.0,0.0821056]
[1766894406407,0.0114015,87769.0,87713.0,0.00228018]
[1766894406408,0.11434106,87740.0,87715.0,0.0114085]
[1766894406604,0.05708,87739.0,87735.0,0.0114059]
[1766894406798,0.11434106,87750.0,87742.0,0.011405]
[1766894406997,0.11434106,87750.0,87721.0,0.05708]
[1766894406998,0.15396,87749.0,87738.0,0.0114054]
[1766894407196,8.531e-05,87748.0,87738.0,0.0114054]
[1766894407507,8.531e-05,87748.0,87734.0,0.011406]
[1766894407805,8.531e-05,87748.0,87733.0,0.0114061]
[1766894408609,8.531e-05,87748.0,87730.0,0.11434106]
[1766894409202,8.531e-05,87748.0,87729.0,0.05708]
[1766894409396,8.531e-05,87748.0,87730.0,0.11434106]
[1766894409805,0.01148961,87748.0,87730.0,0.11434106]
[1766894410503,0.01148961,87748.0,87729.0,0.05708]
[1766894410703,0.0114051,87741.0,87729.0,0.05708]
[1766894411095,0.11434106,87740.0,87729.0,0.05708]
[1766894411601,0.10834106,87740.0,87729.0,0.05708]
[1766894412907,0.10834106,87740.0,87724.0,0.154]
[1766894419211,8.531e-05,87748.0,87724.0,0.154]
[1766894419509,0.05712,87747.0,87724.0,0.154]
[1766894419713,0.05712,87746.0,87736.0,0.0114057]
[1766894419907,0.30596482,87779.0,87736.0,0.0114057]
[1766894419908,0.0114026,87761.0,87739.0,0.0114054]
[1766894420107,0.05712,87751.0,87740.0,0.11434106]
[1766894420309,0.05712,87750.0,87740.0,0.11434106]
[1766894420509,0.02102,87750.0,87740.0,0.11434106]
[1766894420817,0.01502,87750.0,87741.0,0.0114051]
[1766894421211,0.01502,87750.0,87740.0,0.11434106]
[1766894421814,0.00017093,87752.0,87740.0,0.11434106]
[1766894422114,0.00017093,87752.0,87746.0,0.0114043]
[1766894426822,0.00017093,87752.0,87742.0,0.0114048]
[1766894427317,0.00017093,87752.0,87735.0,0.09692]
[1766894427620,0.11434106,87750.0,87735.0,0.09692]
[1766894428412,0.0114042,87749.0,87735.0,0.09692]
[1766894429428,0.11434106,87750.0,87735.0,0.09692]
[1766894430216,0.00017093,87752.0,87735.0,0.09692]
[1766894430418,0.04704,87753.0,87740.0,0.11434106]
[1766894430710,0.05712,87754.0,87735.0,0.09692]
[1766894431318,0.00017093,87753.0,87742.0,0.0114049]
[1766894434326,0.02576389,87752.0,87742.0,0.0114049]
[1766894434624,0.02576389,87751.0,87742.0,0.0114049]
[1766894434826,0.00017093,87753.0,87742.0,0.0114049]
[1766894435024,0.02576389,87752.0,87742.0,0.0114049]
[1766894435323,0.02576389,87751.0,87742.0,0.0114049]
[1766894435525,0.02576389,87750.0,87742.0,0.0114049]
[1766894435826,0.00017093,87753.0,87742.0,0.0114049]
[1766894436027,0.02578406,87752.0,87742.0,0.0114049]
[1766894436214,0.02578406,87751.0,87742.0,0.0114049]
[1766894436418,0.02578406,87750.0,87742.0,0.0114049]
[1766894436627,0.02578406,87749.0,87742.0,0.0114049]
[1766894436828,0.00017093,87753.0,87742.0,0.0114049]
[1766894436829,0.02578406,87748.0,87742.0,0.0114049]
[1766894437028,0.02578406,87747.0,87742.0,0.0114049]
[1766894437224,0.00017093,87753.0,87742.0,0.0114049]
[1766894437527,0.02581412,87752.0,87742.0,0.0114049]
[1766894437720,0.02581412,87751.0,87742.0,0.0114049]
[1766894437920,0.02581412,87750.0,87742.0,0.0114049]
[1766894438121,0.02581412,87749.0,87742.0,0.0114049]
[1766894438320,0.02581412,87748.0,87742.0,0.0114049]
[1766894438521,2e-08,87747.0,87742.0,0.0114049]
[1766894438723,0.00017093,87753.0,87742.0,0.0114049]
[1766894441733,0.00017093,87753.0,87736.0,0.00017093]
[1766894442422,0.00017093,87753.0,87745.0,0.0114045]
[1766894442733,3e-08,87753.0,87748.0,0.0114042]
[1766894442933,3e-08,87753.0,87748.0,0.01060158]
[1766894444332,3e-08,87753.0,87740.0,0.11434106]
[1766894444333,3e-08,87753.0,87750.0,0.0114038]
[1766894453627,3e-08,87753.0,87750.0,0.0684838]
[1766894453829,0.00227862,87773.0,87750.0,0.05708]
[1766894454134,0.01310278,87768.0,87751.0,0.01310277]
[1766894454340,0.02566764,87767.0,87751.0,0.01310277]
[1766894454639,0.02566764,87766.0,87750.0,0.05708]
[1766894454835,0.02566764,87765.0,87750.0,0.05708]
[1766894455030,0.02566764,87764.0,87757.0,0.0114029]
[1766894455226,0.00017093,87768.0,87757.0,0.0114029]
[1766894455427,0.00017093,87768.0,87752.0,0.00017093]
[1766894455428,0.02564458,87767.0,87759.0,0.0114027]
[1766894455643,0.01310187,87782.0,87752.0,0.00017093]
[1766894455644,0.05708,87781.0,87763.0,0.0114021]
[1766894455942,0.0114002,87779.0,87763.0,0.0114021]
[1766894456144,0.0114002,87779.0,87760.0,0.0114026]
[1766894456737,0.00017093,87778.0,87761.0,0.00017093]
[1766894457340,0.0114008,87775.0,87761.0,0.00017093]
[1766894458338,0.00017093,87778.0,87762.0,0.0114023]
[1766894458845,0.00017093,87778.0,87764.0,0.0114021]
[1766894460346,0.00017093,87778.0,87766.0,0.0114018]
[1766894462539,0.00017093,87778.0,87765.0,0.0114019]
[1766894463648,0.00017093,87778.0,87762.0,0.0114023]
[1766894470257,0.0114004,87777.0,87762.0,0.0114023]
[1766894480171,0.02531162,87776.0,87762.0,0.0114023]
[1766894480366,0.0114004,87777.0,87762.0,0.0114023]
[1766894480566,0.02531162,87776.0,87762.0,0.0114023]
[1766894480767,0.0114004,87777.0,87762.0,0.0114023]
[1766894480970,0.02531189,87776.0,87762.0,0.0114023]
[1766894481270,0.025317,87775.0,87762.0,0.0114023]
[1766894481569,0.00017093,87778.0,87762.0,0.0114023]
[1766894481872,0.0253178,87777.0,87762.0,0.0114023]
[1766894482170,0.0253178,87776.0,87762.0,0.0114023]
[1766894482358,0.0253178,87775.0,87762.0,0.0114023]
[1766894482561,0.00017093,87778.0,87762.0,0.0114023]
[1766894482762,0.02532453,87777.0,87762.0,0.0114023]
[1766894483065,0.02532453,87776.0,87762.0,0.0114023]
[1766894483266,0.02532453,87775.0,87762.0,0.0114023]
[1766894483466,0.02532453,87774.0,87762.0,0.0114023]
[1766894483667,0.00017093,87778.0,87762.0,0.0114023]
[1766894483967,0.02533373,87777.0,87764.0,0.0114021]
[1766894484171,0.00017093,87778.0,87764.0,0.0114021]
[1766894494378,0.0114005,87777.0,87762.0,0.09692]
[1766894496084,0.02514025,87776.0,87762.0,0.09692]
[1766894496269,0.02514025,87775.0,87762.0,0.09692]
[1766894496469,0.02514025,87774.0,87762.0,0.09692]
[1766894496671,0.02514025,87773.0,87762.0,0.09692]
[1766894496865,0.154,87785.0,87762.0,0.09692]
[1766894497178,0.0114008,87775.0,87762.0,0.09692]
[1766894497879,0.0114003,87778.0,87762.0,0.09692]
[1766894498069,0.00017093,87777.0,87762.0,0.09692]
[1766894499285,0.0114006,87776.0,87762.0,0.09692]
[1766894507986,0.00017093,87777.0,87762.0,0.1083223]
[1766894508879,0.02499348,87776.0,87762.0,0.1083223]
[1766894509081,0.02499348,87775.0,87762.0,0.1083223]
[1766894509285,0.02499348,87774.0,87762.0,0.1083223]
[1766894509475,0.02499348,87773.0,87762.0,0.1083223]
[1766894509677,0.00017093,87777.0,87762.0,0.1083223]
[1766894509986,0.02499343,87776.0,87762.0,0.1083223]
[1766894510189,0.02499343,87775.0,87762.0,0.1083223]
[1766894510390,0.02499343,87774.0,87762.0,0.1083223]
[1766894510685,0.02499343,87773.0,87762.0,0.1083223]
[1766894510872,0.00017093,87777.0,87762.0,0.1083223]
[1766894511076,0.02499156,87776.0,87762.0,0.1083223]
[1766894511288,0.02499156,87775.0,87762.0,0.1083223]
[1766894511487,0.02499156,87774.0,87762.0,0.1083223]
[1766894511690,0.02499156,87773.0,87762.0,0.1083223]
[1766894511888,0.00017093,87777.0,87762.0,0.1083223]
[1766894512087,0.02498916,87776.0,87762.0,0.1083223]
[1766894512285,0.00400916,87775.0,87762.0,0.1083223]
[1766894512590,0.0114002,87779.0,87762.0,0.1083223]
[1766894512885,0.0113998,87783.0,87769.0,0.11438602]
[1766894513186,0.0051598,87783.0,87770.0,0.05708]
[1766894515288,0.09085093,87785.0,87770.0,0.05708]
[1766894517188,0.09085093,87785.0,87771.0,0.0114012]
[1766894520288,0.09085093,87785.0,87760.0,0.11438602]
[1766894520289,0.22877204,87781.0,87743.0,0.0022794]
[1766894520492,0.11438602,87760.0,87746.0,0.01309877]
[1766894520687,0.0114024,87763.0,87744.0,0.154]
[1766894520887,0.11438602,87760.0,87744.0,0.154]
[1766894521096,0.05708,87776.0,87744.0,0.154]
[1766894521300,0.0114019,87766.0,87747.0,0.0114042]
[1766894521590,0.11438602,87770.0,87751.0,0.00017093]
[1766894521591,0.0114022,87764.0,87751.0,0.00017093]
[1766894521896,0.0114022,87764.0,87752.0,0.05708]
[1766894523094,0.11438602,87762.0,87752.0,0.05708]
[1766894527697,0.12578852,87762.0,87752.0,0.05708]
[1766894530190,0.12578852,87762.0,87753.0,0.09692]
[1766894532701,0.11438602,87762.0,87753.0,0.09692]
[1766894535003,0.011402,87765.0,87753.0,0.09692]
[1766894535300,0.0114017,87768.0,87753.0,0.09692]
[1766894535501,0.02485768,87767.0,87753.0,0.09692]
[1766894535701,0.0114017,87768.0,87753.0,0.09692]
[1766894535901,0.02485784,87767.0,87753.0,0.09692]
[1766894536098,0.0114017,87768.0,87753.0,0.09692]
[1766894536305,0.02485778,87767.0,87753.0,0.09692]
[1766894538206,0.0114019,87766.0,87753.0,0.09692]
[1766894544207,0.02486836,87765.0,87753.0,0.09692]
[1766894544415,0.0114019,87766.0,87753.0,0.09692]
[1766894544608,0.02486906,87765.0,87753.0,0.09692]
[1766894544807,0.0114019,87766.0,87753.0,0.09692]
[1766894545111,0.02486906,87765.0,87753.0,0.09692]
[1766894545312,0.0114019,87766.0,87753.0,0.09692]
[1766894545512,0.02487292,87765.0,87753.0,0.09692]
[1766894545813,0.0114019,87766.0,87753.0,0.09692]
[1766894546002,0.02487292,87765.0,87753.0,0.09692]
[1766894546202,0.0114019,87766.0,87753.0,0.09692]
[1766894546402,0.02487791,87765.0,87753.0,0.09692]
[1766894546612,0.0114019,87766.0,87753.0,0.09692]
[1766894546911,0.0114021,87764.0,87753.0,0.09692]
[1766894548224,0.02489261,87763.0,87753.0,0.09692]
[1766894548412,0.0114021,87764.0,87753.0,0.09692]
[1766894548613,0.02489301,87763.0,87753.0,0.09692]
[1766894548810,0.0114021,87764.0,87753.0,0.09692]
[1766894549012,0.02489302,87763.0,87753.0,0.09692]
[1766894549213,0.02513011,87762.0,87753.0,0.09692]
[1766894549414,0.02513011,87761.0,87753.0,0.09692]
[1766894549714,0.0114021,87764.0,87753.0,0.09692]
[1766894549918,0.02513014,87763.0,87753.0,0.09692]
[1766894550118,0.02513014,87762.0,87753.0,0.09692]
[1766894550307,0.02513014,87761.0,87753.0,0.09692]
[1766894550507,0.0114021,87764.0,87753.0,0.09692]
[1766894550707,0.0251301,87763.0,87753.0,0.09692]
[1766894550915,0.0251301,87762.0,87753.0,0.09692]
[1766894551108,0.0251301,87761.0,87753.0,0.09692]
[1766894551407,0.0114021,87764.0,87753.0,0.09692]
[1766894551608,0.0251302,87763.0,87753.0,0.09692]
[1766894551807,0.0114021,87764.0,87753.0,0.09692]
[1766894551808,0.0251302,87762.0,87753.0,0.09692]
[1766894552108,0.0251302,87761.0,87753.0,0.09692]
[1766894552306,0.0114021,87764.0,87753.0,0.09692]
[1766894552506,0.02513021,87763.0,87753.0,0.09692]
[1766894552715,0.02513021,87762.0,87753.0,0.09692]
[1766894552909,0.02513021,87761.0,87753.0,0.09692]
[1766894553109,0.0114021,87764.0,87753.0,0.09692]
[1766894553309,0.02513024,87763.0,87753.0,0.09692]
[1766894553515,0.02513024,87762.0,87753.0,0.09692]
[1766894553712,0.0114021,87764.0,87753.0,0.09692]
[1766894553713,0.02513024,87761.0,87753.0,0.09692]
[1766894553913,0.0114021,87764.0,87753.0,0.09692]
[1766894554116,0.02513027,87763.0,87753.0,0.09692]
[1766894554415,0.02513027,87762.0,87753.0,0.09692]
[1766894554607,0.02513027,87761.0,87753.0,0.09692]
[1766894554902,0.0114021,87764.0,87753.0,0.09692]
[1766894555110,0.02513024,87763.0,87753.0,0.09692]
[1766894555304,0.02513024,87762.0,87753.0,0.09692]
[1766894555513,0.02513024,87761.0,87753.0,0.09692]
[1766894555714,0.0114021,87764.0,87753.0,0.09692]
[1766894555916,0.02513023,87763.0,87753.0,0.09692]
[1766894556116,0.0114021,87764.0,87753.0,0.09692]
[1766894556315,0.00017093,87769.0,87753.0,0.09692]
[1766894556718,0.00017093,87769.0,87756.0,0.011403]
[1766894556911,0.00017093,87769.0,87757.0,0.05708]
[1766894557116,0.05708,87776.0,87757.0,0.05708]
[1766894557310,0.0114006,87776.0,87761.0,0.0114025]
[1766894557510,0.11438602,87780.0,87763.0,0.0114022]
[1766894557511,0.0114002,87779.0,87763.0,0.0114022]
[1766894557711,0.11438602,87780.0,87763.0,0.0114022]
[1766894558013,0.05708,87785.0,87770.0,0.0114012]
[1766894558208,0.01157023,87786.0,87770.0,0.05708]
[1766894558613,0.00017093,87786.0,87771.0,0.0114012]
[1766894558913,0.00017093,87786.0,87773.0,0.0114009]
[1766894559116,0.0261962,87785.0,87773.0,0.0114009]
[1766894559616,0.00017093,87786.0,87773.0,0.0114009]
[1766894562220,0.0261962,87785.0,87773.0,0.0114009]
[1766894562720,0.00017093,87786.0,87773.0,0.0114009]
[1766894562915,0.0261962,87785.0,87773.0,0.0114009]
[1766894563316,0.00017093,87786.0,87773.0,0.0114009]
[1766894563621,0.0261962,87785.0,87770.0,0.0684813]
[1766894564220,0.00017093,87786.0,87770.0,0.0684813]
[1766894568225,0.02487998,87785.0,87770.0,0.0684813]
[1766894568425,0.02487998,87784.0,87770.0,0.0684813]
[1766894568622,0.02487998,87783.0,87770.0,0.0684813]
[1766894568922,0.02487998,87782.0,87770.0,0.0684813]
[1766894569125,0.02487998,87781.0,87770.0,0.0684813]
[1766894569323,0.02487998,87780.0,87770.0,0.0684813]
[1766894569624,0.00017093,87786.0,87770.0,0.0684813]
[1766894569823,0.05107374,87785.0,87770.0,0.0684813]
[1766894570017,0.02487754,87784.0,87770.0,0.0684813]
[1766894570217,0.02487754,87783.0,87770.0,0.0684813]
[1766894570419,0.00017093,87786.0,87770.0,0.0684813]
[1766894570420,0.02487754,87782.0,87770.0,0.0684813]
[1766894570621,0.02487754,87781.0,87770.0,0.0684813]
[1766894570822,0.02487754,87780.0,87770.0,0.0684813]
[1766894571019,0.00017093,87786.0,87770.0,0.0684813]
[1766894571020,0.02487754,87779.0,87770.0,0.0684813]
[1766894571224,0.02487754,87778.0,87770.0,0.0684813]
[1766894571423,0.00017093,87786.0,87770.0,0.0684813]
[1766894571626,0.02487629,87785.0,87770.0,0.0684813]
[1766894571819,0.02487629,87784.0,87770.0,0.0684813]
[1766894572019,0.02487629,87783.0,87770.0,0.0684813]
[1766894572219,0.02487629,87782.0,87770.0,0.0684813]
[1766894572419,0.02487629,87781.0,87770.0,0.0684813]
[1766894572620,0.02487629,87780.0,87770.0,0.0684813]
[1766894572824,0.02487629,87779.0,87770.0,0.0684813]
[1766894573018,0.02487629,87778.0,87770.0,0.0684813]
[1766894573217,0.00017093,87786.0,87770.0,0.0684813]
[1766894573425,0.02487617,87785.0,87770.0,0.0684813]
[1766894573619,0.02487617,87784.0,87770.0,0.0684813]
[1766894573820,0.02487617,87783.0,87770.0,0.0684813]
[1766894574022,0.02487617,87782.0,87770.0,0.0684813]
[1766894574222,0.02487617,87781.0,87770.0,0.0684813]
[1766894574525,0.02487617,87780.0,87770.0,0.0684813]
[1766894574730,0.02487617,87779.0,87770.0,0.0684813]
[1766894574920,0.02487617,87778.0,87770.0,0.0684813]
[1766894575123,0.00017093,87786.0,87770.0,0.0684813]
[1766894575326,0.05107273,87785.0,87770.0,0.0684813]
[1766894575626,0.00017093,87786.0,87772.0,0.011401]
[1766894580636,0.00017093,87786.0,87772.0,0.108321]
[1766894587644,0.02459764,87785.0,87772.0,0.108321]
[1766894587953,0.02459764,87784.0,87772.0,0.108321]
[1766894588151,0.02459764,87783.0,87772.0,0.108321]
[1766894588351,0.02459764,87782.0,87772.0,0.108321]
[1766894588551,0.02459764,87781.0,87772.0,0.108321]
[1766894588750,0.02459764,87780.0,87772.0,0.108321]
[1766894588950,0.02459764,87779.0,87772.0,0.108321]
[1766894589252,0.02459764,87778.0,87772.0,0.108321]
[1766894589437,0.02459764,87777.0,87772.0,0.108321]
[1766894589642,0.00017093,87786.0,87772.0,0.108321]
[1766894589944,0.02459845,87785.0,87772.0,0.108321]
[1766894590242,0.02459845,87784.0,87772.0,0.108321]
[1766894590442,0.00017093,87786.0,87772.0,0.108321]
[1766894590443,0.02459845,87783.0,87772.0,0.108321]
[1766894590639,0.02459845,87782.0,87772.0,0.108321]
[1766894590847,0.02459845,87781.0,87772.0,0.108321]
[1766894591047,0.02459845,87780.0,87772.0,0.108321]
[1766894591249,0.02459845,87779.0,87772.0,0.108321]
[1766894591553,0.02459845,87778.0,87772.0,0.108321]
[1766894591760,5e-08,87777.0,87772.0,0.108321]
[1766894591952,0.0195062,87785.0,87772.0,0.09692]
[1766894592156,9.3e-07,87786.0,87772.0,0.09692]
[1766894592351,9.3e-07,87786.0,87778.0,0.0114003]
[1766894592559,9.3e-07,87786.0,87779.0,0.05704]
[1766894595562,0.0195062,87785.0,87779.0,0.05704]
[1766894595953,9.3e-07,87786.0,87779.0,0.05704]
[1766894596154,0.0195062,87785.0,87780.0,0.01309785]
[1766894596553,9.3e-07,87786.0,87780.0,0.01309785]
[1766894596750,0.0195062,87785.0,87780.0,0.01309785]
[1766894597157,9.3e-07,87786.0,87779.0,0.05704]
[1766894597358,0.0195062,87785.0,87780.0,0.01309792]
[1766894597752,9.3e-07,87786.0,87779.0,0.05704]
[1766894597952,0.0195062,87785.0,87780.0,0.01309792]
[1766894598459,9.3e-07,87786.0,87780.0,0.02449792]
[1766894598659,9.3e-07,87786.0,87780.0,0.0114]
[1766894598856,9.3e-07,87786.0,87782.0,0.0113997]
[1766894599059,9.3e-07,87786.0,87784.0,0.0113995]
[1766894599260,9.3e-07,87786.0,87785.0,0.05704]
[1766894622872,0.06368475,87803.0,87785.0,0.05704]
[1766894623074,0.02432644,87802.0,87785.0,0.05704]
[1766894623374,0.02432644,87801.0,87785.0,0.05704]
[1766894623573,0.02432644,87800.0,87785.0,0.05704]
[1766894623774,0.03572404,87799.0,87785.0,0.05704]
[1766894623975,0.01024644,87798.0,87785.0,0.05704]
[1766894624172,0.0113976,87799.0,87785.0,0.05704]
[1766894625078,0.00011359,87801.0,87785.0,0.05704]
[1766894625283,3.59e-06,87801.0,87786.0,0.0113992]
[1766894627780,0.05704,87814.0,87789.0,0.0113988]
[1766894627980,0.05704,87814.0,87787.0,0.011399]
[1766894628688,0.05704,87814.0,87792.0,0.00017093]
[1766894628987,0.05704,87814.0,87793.0,0.05704]
[1766894629188,0.0113968,87805.0,87793.0,0.05704]
[1766894630481,0.05704,87814.0,87793.0,0.05704]
[1766894632282,0.0113963,87810.0,87793.0,0.05704]
[1766894633580,0.0113965,87808.0,87793.0,0.05704]
[1766894634691,0.05704,87814.0,87793.0,0.05704]
[1766894634996,0.05704,87814.0,87794.0,0.0113982]
[1766894635894,0.0113962,87810.0,87794.0,0.0113982]
[1766894636093,0.02415707,87809.0,87794.0,0.0113982]
[1766894636296,0.02415707,87808.0,87794.0,0.0113982]
[1766894636498,0.02415707,87807.0,87794.0,0.0113982]
[1766894636690,0.02415707,87806.0,87794.0,0.0113982]
[1766894636888,0.0113962,87810.0,87794.0,0.0113982]
[1766894637194,0.02416264,87809.0,87794.0,0.0113982]
[1766894637386,0.02416264,87808.0,87794.0,0.0113982]
[1766894637588,0.02416264,87807.0,87794.0,0.0113982]
[1766894637788,0.02416264,87806.0,87794.0,0.0113982]
[1766894637988,0.0241618,87805.0,87794.0,0.0113982]
[1766894638192,0.05704,87814.0,87795.0,0.11429836]
[1766894638500,0.02416135,87813.0,87793.0,0.05704]
[1766894638699,0.02416135,87812.0,87797.0,0.0113978]
[1766894638901,0.02416135,87811.0,87797.0,0.0113978]
[1766894639102,0.02416135,87810.0,87797.0,0.0113978]
[1766894639401,0.02416135,87809.0,87797.0,0.0113978]
[1766894639602,0.0113957,87814.0,87797.0,0.0113978]
[1766894639804,0.02421309,87813.0,87797.0,0.0113978]
[1766894640098,0.02421309,87812.0,87800.0,0.11429836]
[1766894640298,0.02421309,87811.0,87801.0,0.05704]
[1766894640603,0.02421309,87810.0,87801.0,0.05704]
[1766894640797,0.02421309,87809.0,87801.0,0.05704]
[1766894641000,0.0113957,87814.0,87801.0,0.05704]
[1766894641200,0.0242136,87813.0,87801.0,0.05704]
[1766894641402,0.0242136,87812.0,87801.0,0.05704]
[1766894641601,0.0242136,87811.0,87801.0,0.05704]
[1766894641795,0.0113953,87817.0,87801.0,0.05704]
[1766894642007,0.02421167,87816.0,87801.0,0.05704]
[1766894642294,0.0113953,87817.0,87801.0,0.05704]
[1766894642295,0.02421167,87815.0,87801.0,0.0684372]
[1766894642599,0.02421167,87814.0,87801.0,0.0684372]
[1766894642801,0.02421167,87813.0,87801.0,0.0684372]
[1766894643097,0.02421167,87812.0,87801.0,0.0684372]
[1766894643298,0.02421167,87811.0,87801.0,0.0684372]
[1766894643494,0.0113953,87817.0,87801.0,0.0684372]
[1766894643697,0.02420864,87816.0,87801.0,0.0684372]
[1766894643896,0.02420864,87815.0,87801.0,0.05704]
[1766894644097,0.02420864,87814.0,87801.0,0.05704]
[1766894644396,0.02420864,87813.0,87801.0,0.05704]
[1766894644599,0.02420864,87812.0,87801.0,0.05704]
[1766894644794,0.02420864,87811.0,87801.0,0.05704]
[1766894644994,0.02420864,87810.0,87801.0,0.05704]
[1766894645203,0.02420864,87809.0,87801.0,0.05704]
[1766894645405,0.0113953,87817.0,87801.0,0.05704]
[1766894645605,0.0113956,87815.0,87801.0,0.05704]
[1766894645806,0.02420696,87814.0,87801.0,0.05704]
[1766894646106,0.02420696,87813.0,87801.0,0.0684373]
[1766894646299,0.02420696,87812.0,87801.0,0.0684373]
[1766894646500,0.02420696,87811.0,87801.0,0.0684373]
[1766894646702,0.0113951,87818.0,87801.0,0.0684373]
[1766894646901,0.02420736,87817.0,87801.0,0.0684373]
[1766894647202,0.0113951,87818.0,87801.0,0.0684373]
[1766894647203,0.02420736,87816.0,87801.0,0.0684373]
[1766894647405,0.02420736,87815.0,87801.0,0.0684373]
[1766894647706,0.02420736,87814.0,87801.0,0.0684373]
[1766894647906,0.02420736,87813.0,87801.0,0.0684373]
[1766894648108,0.02420736,87812.0,87801.0,0.0684373]
[1766894648308,0.02420736,87811.0,87802.0,0.09688]
[1766894648510,0.0113951,87818.0,87802.0,0.09688]
[1766894648810,0.02420828,87817.0,87802.0,0.09688]
[1766894649010,0.02420828,87816.0,87802.0,0.09688]
[1766894649208,0.0113951,87818.0,87802.0,0.09688]
[1766894649209,0.02420828,87815.0,87802.0,0.09688]
[1766894649410,0.02420828,87814.0,87802.0,0.09688]
[1766894649626,0.02420828,87813.0,87802.0,0.09688]
[1766894649827,0.02420828,87812.0,87802.0,0.09688]
[1766894650024,0.02420828,87811.0,87802.0,0.09688]
[1766894650220,0.0113951,87818.0,87802.0,0.09688]
[1766894650421,0.02421065,87817.0,87802.0,0.09688]
[1766894650621,0.02421065,87816.0,87802.0,0.09688]
[1766894650820,0.02421065,87815.0,87802.0,0.09688]
[1766894651015,0.02421065,87814.0,87802.0,0.09688]
[1766894651223,0.02421065,87813.0,87802.0,0.09688]
[1766894651422,0.02421065,87812.0,87802.0,0.09688]
[1766894651621,0.0113951,87818.0,87802.0,0.09688]
[1766894651622,0.02421065,87811.0,87802.0,0.09688]
[1766894651821,0.0113954,87816.0,87802.0,0.09688]
[1766894652128,0.02421191,87815.0,87802.0,0.09688]
[1766894652327,0.02421191,87814.0,87802.0,0.09688]
[1766894652531,0.02421191,87813.0,87802.0,0.09688]
[1766894652721,0.02421191,87812.0,87802.0,0.09688]
[1766894653020,0.02421191,87811.0,87802.0,0.09688]
[1766894653223,0.0113954,87816.0,87802.0,0.09688]
[1766894653428,0.02421683,87815.0,87802.0,0.09688]
[1766894653623,0.02421683,87814.0,87802.0,0.09688]
[1766894653824,0.0113954,87816.0,87802.0,0.09688]
[1766894653825,0.02421683,87813.0,87802.0,0.09688]
[1766894654025,0.02421683,87812.0,87802.0,0.09688]
[1766894654225,0.02421683,87811.0,87802.0,0.09688]
[1766894654421,0.0113954,87816.0,87802.0,0.09688]
[1766894654627,0.02421923,87815.0,87802.0,0.09688]
[1766894654829,0.02421923,87814.0,87802.0,0.09688]
[1766894655032,0.02421923,87813.0,87802.0,0.09688]
[1766894655228,0.02421923,87812.0,87802.0,0.09688]
[1766894655529,0.02421923,87811.0,87802.0,0.09688]
[1766894655727,0.02421923,87810.0,87802.0,0.09688]
[1766894655930,0.0113954,87816.0,87802.0,0.09688]
[1766894656136,0.02422247,87815.0,87802.0,0.09688]
[1766894656326,0.02422247,87814.0,87802.0,0.09688]
[1766894656525,0.02422247,87813.0,87802.0,0.09688]
[1766894656832,0.02422247,87812.0,87802.0,0.09688]
[1766894657017,0.02422247,87811.0,87802.0,0.09688]
[1766894657223,0.02422247,87810.0,87802.0,0.09688]
[1766894657424,0.0113954,87816.0,87802.0,0.09688]
[1766894657626,0.02422864,87815.0,87802.0,0.09688]
[1766894657922,0.02422864,87814.0,87802.0,0.09688]
[1766894658125,0.02422864,87813.0,87802.0,0.09688]
[1766894658321,0.02422864,87812.0,87802.0,0.09688]
[1766894658521,0.02422864,87811.0,87802.0,0.09688]
[1766894658725,0.02422864,87810.0,87802.0,0.09688]
[1766894659025,0.0113954,87816.0,87802.0,0.09688]
[1766894659225,0.02422939,87815.0,87802.0,0.09688]
[1766894659429,0.02422939,87814.0,87802.0,0.09688]
[1766894659623,0.02422939,87813.0,87802.0,0.09688]
[1766894659832,0.0113954,87816.0,87802.0,0.09688]
[1766894660036,0.02423048,87815.0,87802.0,0.09688]
[1766894660231,0.02423048,87814.0,87802.0,0.09688]
[1766894660427,0.02423048,87813.0,87802.0,0.09688]
[1766894660624,0.0113954,87816.0,87802.0,0.09688]
[1766894661941,0.0113934,87832.0,87816.0,0.0113952]
[1766894662136,0.0113935,87831.0,87820.0,0.11429836]
[1766894663041,0.00227706,87833.0,87820.0,0.11429836]
[1766894667146,0.011393,87834.0,87820.0,0.11429836]